[Event "Live Chess"]
[Site "Chess.com"]
[Date "2023.05.21"]
[Round "-"]
[White "OleksiyJr1"]
[Black "profpirate4"]
[Result "0-1"]
[WhiteElo "987"]
[BlackElo "1272"]
[TimeControl "300"]
[EndTime "1:20:23 PDT"]
[Termination "profpirate4 won by resignation"]

1. e4 {[%clk 0:04:57.4]} 1... c5 {[%clk 0:04:58.9]} 2. Nf3 {[%clk 0:04:56.9]}
2... d6 {[%clk 0:04:57.8]} 3. Nc3 {[%clk 0:04:55.1]} 3... Nf6 {[%clk 0:04:55.6]}
4. d4 {[%clk 0:04:54]} 4... cxd4 {[%clk 0:04:54.7]} 5. Qxd4 {[%clk 0:04:53.9]}
5... e5 {[%clk 0:04:53.5]} 6. Qe3 {[%clk 0:04:51.5]} 6... a6 {[%clk 0:04:52.5]}
7. Bd3 {[%clk 0:04:47.5]} 7... b5 {[%clk 0:04:51]} 8. O-O {[%clk 0:04:46.5]}
8... Bb7 {[%clk 0:04:49.9]} 9. b4 {[%clk 0:04:43.3]} 9... Nc6 {[%clk 0:04:42.9]}
10. a3 {[%clk 0:04:42.1]} 10... Rc8 {[%clk 0:04:39.6]} 11. Ne2 {[%clk
0:04:40.5]} 11... Nd4 {[%clk 0:04:38.3]} 12. Nfxd4 {[%clk 0:04:35]} 12... exd4
{[%clk 0:04:37]} 13. Nxd4 {[%clk 0:04:33.8]} 13... Qe7 {[%clk 0:04:32.4]} 14.
Re1 {[%clk 0:04:30.8]} 14... Ng4 {[%clk 0:04:28]} 15. Qf4 {[%clk 0:04:21.8]}
15... Ne5 {[%clk 0:04:22.4]} 16. Nf3 {[%clk 0:04:15.4]} 16... g6 {[%clk
0:04:10.6]} 17. Nxe5 {[%clk 0:04:06.8]} 17... dxe5 {[%clk 0:04:08.8]} 18. Qe3
{[%clk 0:04:05.8]} 18... Bg7 {[%clk 0:04:06.8]} 19. Bd2 {[%clk 0:04:04.2]} 19...
O-O {[%clk 0:04:05.5]} 20. Rac1 {[%clk 0:04:02.9]} 20... Rfd8 {[%clk 0:03:52.3]}
21. c4 {[%clk 0:03:58.9]} 21... bxc4 {[%clk 0:03:39.2]} 22. Rxc4 {[%clk
0:03:58.8]} 22... Rxc4 {[%clk 0:03:29.2]} 23. Bxc4 {[%clk 0:03:56.5]} 23... Rd4
{[%clk 0:03:27.5]} 24. Bd3 {[%clk 0:03:46]} 24... Qd7 {[%clk 0:03:20.3]} 25. Bc2
{[%clk 0:03:29.7]} 25... Rxd2 {[%clk 0:03:16.7]} 26. Qb6 {[%clk 0:03:27.3]}
26... Rxc2 {[%clk 0:03:10]} 0-1

[Event "Live Chess"]
[Site "Chess.com"]
[Date "2023.05.21"]
[Round "-"]
[White "WelshTiger"]
[Black "BillythekidFellowes"]
[Result "0-1"]
[WhiteElo "2348"]
[BlackElo "2049"]
[TimeControl "300"]
[EndTime "1:20:32 PDT"]
[Termination "BillythekidFellowes won by checkmate"]

1. e4 {[%clk 0:04:53.1]} 1... c6 {[%clk 0:04:58.9]} 2. d4 {[%clk 0:04:51]} 2...
d5 {[%clk 0:04:58]} 3. f3 {[%clk 0:04:50.5]} 3... dxe4 {[%clk 0:04:57.6]} 4.
fxe4 {[%clk 0:04:50.4]} 4... e5 {[%clk 0:04:57.2]} 5. Nf3 {[%clk 0:04:49.7]}
5... exd4 {[%clk 0:04:56.1]} 6. Bc4 {[%clk 0:04:48.2]} 6... Nd7 {[%clk
0:04:53.3]} 7. O-O {[%clk 0:04:44.6]} 7... Ngf6 {[%clk 0:04:52.9]} 8. e5 {[%clk
0:04:39.1]} 8... Nd5 {[%clk 0:04:51.9]} 9. Kh1 {[%clk 0:04:35.5]} 9... Be7
{[%clk 0:04:48.1]} 10. Qxd4 {[%clk 0:04:24.7]} 10... O-O {[%clk 0:04:41.4]} 11.
Bxd5 {[%clk 0:04:17.9]} 11... cxd5 {[%clk 0:04:39.6]} 12. Qxd5 {[%clk
0:04:17.4]} 12... Qc7 {[%clk 0:04:32.8]} 13. Nc3 {[%clk 0:04:12.9]} 13... Nb6
{[%clk 0:04:31.8]} 14. Qe4 {[%clk 0:04:08.4]} 14... Be6 {[%clk 0:04:17.5]} 15.
Bg5 {[%clk 0:03:52.6]} 15... Rac8 {[%clk 0:04:11.5]} 16. Rad1 {[%clk 0:03:46.9]}
16... Rfe8 {[%clk 0:04:03.7]} 17. Bxe7 {[%clk 0:03:43.6]} 17... Qxe7 {[%clk
0:04:03.6]} 18. Nd4 {[%clk 0:03:26.7]} 18... Qg5 {[%clk 0:03:53.5]} 19. Nxe6
{[%clk 0:03:18.8]} 19... Rxe6 {[%clk 0:03:53.4]} 20. Qxb7 {[%clk 0:03:14.7]}
20... Rf8 {[%clk 0:03:41.2]} 21. Qxa7 {[%clk 0:03:09.4]} 21... Qxe5 {[%clk
0:03:34]} 22. a4 {[%clk 0:02:54.8]} 22... Nc4 {[%clk 0:03:31.3]} 23. Rd5 {[%clk
0:02:23.7]} 23... Qe3 {[%clk 0:03:17.8]} 24. Qb7 {[%clk 0:02:06.4]} 24... Rf6
{[%clk 0:03:06]} 25. Rg1 {[%clk 0:01:57.5]} 25... Nd2 {[%clk 0:02:59.6]} 26. h3
{[%clk 0:01:45.3]} 26... Rh6 {[%clk 0:02:53.4]} 27. Rd3 {[%clk 0:01:41]} 27...
Qf2 {[%clk 0:02:46.3]} 28. Qd5 {[%clk 0:01:33.1]} 28... Nf1 {[%clk 0:02:29.7]}
29. Qf3 {[%clk 0:01:22.5]} 29... Qxc2 {[%clk 0:02:18.2]} 30. Qxf1 {[%clk
0:01:18.7]} 30... Qxb2 {[%clk 0:02:14.5]} 31. Ne4 {[%clk 0:01:17.8]} 31... Qe5
{[%clk 0:02:12.5]} 32. Qf3 {[%clk 0:01:12.4]} 32... Re6 {[%clk 0:02:07.7]} 33.
Ng3 {[%clk 0:00:57.7]} 33... Rf6 {[%clk 0:02:04.8]} 34. Qe4 {[%clk 0:00:57]}
34... Qg5 {[%clk 0:02:02.2]} 35. Qe3 {[%clk 0:00:54.8]} 35... Qg6 {[%clk
0:01:58.7]} 36. Rgd1 {[%clk 0:00:48.2]} 36... Re6 {[%clk 0:01:57.3]} 37. Qf3
{[%clk 0:00:43.6]} 37... Rf6 {[%clk 0:01:54.2]} 38. Qe4 {[%clk 0:00:43]} 38...
Qg5 {[%clk 0:01:47.6]} 39. Kh2 {[%clk 0:00:42.5]} 39... Re6 {[%clk 0:01:46.1]}
40. Qd5 {[%clk 0:00:40.8]} 40... Qe7 {[%clk 0:01:40.8]} 41. a5 {[%clk
0:00:36.4]} 41... Qc7 {[%clk 0:01:40]} 42. Qb5 {[%clk 0:00:33]} 42... Rg6 {[%clk
0:01:35.3]} 43. Ra3 {[%clk 0:00:31.9]} 43... h5 {[%clk 0:01:29.5]} 44. Qxh5
{[%clk 0:00:29.7]} 44... Rc8 {[%clk 0:01:21.4]} 45. a6 {[%clk 0:00:28.5]} 45...
Qe7 {[%clk 0:01:14.9]} 46. a7 {[%clk 0:00:26.5]} 46... Qxa3 {[%clk 0:01:09.3]}
47. Rd7 {[%clk 0:00:19.9]} 47... Qxg3+ {[%clk 0:01:08]} 48. Kh1 {[%clk
0:00:18.9]} 48... Qxg2# {[%clk 0:01:07.9]} 0-1

[Event "Live Chess"]
[Site "Chess.com"]
[Date "2023.05.21"]
[Round "-"]
[White "Singapourfeuj"]
[Black "Hacker_2009"]
[Result "1-0"]
[WhiteElo "2189"]
[BlackElo "1917"]
[TimeControl "300"]
[EndTime "1:20:33 PDT"]
[Termination "Singapourfeuj won by resignation"]

1. d4 {[%clk 0:04:59]} 1... Nf6 {[%clk 0:04:58.5]} 2. Nf3 {[%clk 0:04:57.8]}
2... e6 {[%clk 0:04:57.3]} 3. g3 {[%clk 0:04:56.5]} 3... d5 {[%clk 0:04:56.9]}
4. Bg2 {[%clk 0:04:55.7]} 4... c5 {[%clk 0:04:56.4]} 5. O-O {[%clk 0:04:54.9]}
5... Nc6 {[%clk 0:04:55.3]} 6. c3 {[%clk 0:04:53.1]} 6... Be7 {[%clk 0:04:53.8]}
7. Nbd2 {[%clk 0:04:51.7]} 7... O-O {[%clk 0:04:52.3]} 8. Re1 {[%clk 0:04:49.6]}
8... b6 {[%clk 0:04:51]} 9. e4 {[%clk 0:04:48.3]} 9... dxe4 {[%clk 0:04:49.8]}
10. Nxe4 {[%clk 0:04:47]} 10... Nxe4 {[%clk 0:04:48.8]} 11. Rxe4 {[%clk
0:04:45.9]} 11... Bb7 {[%clk 0:04:47.6]} 12. Re1 {[%clk 0:04:43.6]} 12... cxd4
{[%clk 0:04:45]} 13. Nxd4 {[%clk 0:04:42.4]} 13... Qc7 {[%clk 0:04:39.9]} 14.
Bf4 {[%clk 0:04:38.8]} 14... e5 {[%clk 0:04:28.9]} 15. Nxc6 {[%clk 0:04:36]}
15... Bxc6 {[%clk 0:04:27.5]} 16. Bxe5 {[%clk 0:04:33.6]} 16... Qb7 {[%clk
0:04:26.6]} 17. Bxc6 {[%clk 0:04:31.9]} 17... Qxc6 {[%clk 0:04:25.8]} 18. Bxg7
{[%clk 0:04:30.7]} 18... Kxg7 {[%clk 0:04:25.1]} 19. Rxe7 {[%clk 0:04:29.3]}
19... Rad8 {[%clk 0:04:23.4]} 20. Qg4+ {[%clk 0:04:27.9]} 20... Kh8 {[%clk
0:04:21.1]} 21. Rae1 {[%clk 0:04:26.2]} 21... Qd5 {[%clk 0:04:16.2]} 22. Rxa7
{[%clk 0:04:22.2]} 22... Qd2 {[%clk 0:04:10.6]} 23. Qe2 {[%clk 0:04:20.7]} 23...
Qd5 {[%clk 0:04:06.7]} 24. Qe5+ {[%clk 0:04:19.4]} 24... Qxe5 {[%clk 0:04:05.5]}
25. Rxe5 {[%clk 0:04:18.1]} 25... Rd2 {[%clk 0:04:04.9]} 26. Rb5 {[%clk
0:04:16.6]} 26... Re8 {[%clk 0:04:02.3]} 27. Rxf7 {[%clk 0:04:14.8]} 27... Kg8
{[%clk 0:03:58]} 28. Rf4 {[%clk 0:04:13.1]} 28... Ree2 {[%clk 0:03:56]} 29. Rxb6
{[%clk 0:04:10.7]} 29... Rxb2 {[%clk 0:03:54.8]} 30. Rxb2 {[%clk 0:04:09.1]}
30... Rxb2 {[%clk 0:03:54.7]} 31. a4 {[%clk 0:04:07.8]} 31... Rc2 {[%clk
0:03:51.4]} 32. Rc4 {[%clk 0:04:06.2]} 1-0

[Event "Live Chess"]
[Site "Chess.com"]
[Date "2023.05.21"]
[Round "-"]
[White "MarkLim1"]
[Black "TheSmoulderingMaster"]
[Result "1/2-1/2"]
[WhiteElo "1705"]
[BlackElo "1685"]
[TimeControl "300"]
[EndTime "1:20:38 PDT"]
[Termination "Game drawn by repetition"]

1. d4 {[%clk 0:04:59.4]} 1... Nf6 {[%clk 0:04:58]} 2. Nf3 {[%clk 0:04:58.9]}
2... d6 {[%clk 0:04:57.5]} 3. c4 {[%clk 0:04:57.7]} 3... g6 {[%clk 0:04:56.4]}
4. Nc3 {[%clk 0:04:57.2]} 4... Bg7 {[%clk 0:04:55.8]} 5. e4 {[%clk 0:04:56.9]}
5... O-O {[%clk 0:04:55.1]} 6. Be2 {[%clk 0:04:56.4]} 6... Bg4 {[%clk
0:04:54.1]} 7. Be3 {[%clk 0:04:55.3]} 7... Nbd7 {[%clk 0:04:53.1]} 8. Qd2 {[%clk
0:04:50]} 8... e5 {[%clk 0:04:51.5]} 9. d5 {[%clk 0:04:48.9]} 9... Nc5 {[%clk
0:04:50.3]} 10. Qc2 {[%clk 0:04:41.1]} 10... Nh5 {[%clk 0:04:47]} 11. h3 {[%clk
0:04:39.8]} 11... Bxf3 {[%clk 0:04:45.9]} 12. Bxf3 {[%clk 0:04:37.6]} 12... Nf4
{[%clk 0:04:45.8]} 13. Bxf4 {[%clk 0:04:35.8]} 13... exf4 {[%clk 0:04:45.2]} 14.
O-O-O {[%clk 0:04:34.8]} 14... Re8 {[%clk 0:04:42.6]} 15. h4 {[%clk 0:04:33.3]}
15... Bxc3 {[%clk 0:04:40.1]} 16. bxc3 {[%clk 0:04:29.1]} 16... Qf6 {[%clk
0:04:34.7]} 17. h5 {[%clk 0:04:25.5]} 17... a6 {[%clk 0:04:31.3]} 18. hxg6
{[%clk 0:04:24.2]} 18... fxg6 {[%clk 0:04:29.8]} 19. Rh3 {[%clk 0:04:19.9]}
19... b5 {[%clk 0:04:28.3]} 20. Rdh1 {[%clk 0:04:15.5]} 20... h5 {[%clk
0:04:25.7]} 21. g4 {[%clk 0:04:10.4]} 21... hxg4 {[%clk 0:04:23.4]} 22. Bxg4
{[%clk 0:04:09.4]} 22... Nxe4 {[%clk 0:04:14.8]} 23. f3 {[%clk 0:04:04.8]} 23...
Ng5 {[%clk 0:03:59.3]} 24. Rh6 {[%clk 0:03:49]} 24... Kg7 {[%clk 0:03:56]} 25.
Qh2 {[%clk 0:03:28.1]} 25... Qxc3+ {[%clk 0:03:50.3]} 26. Kb1 {[%clk 0:03:26.1]}
26... Qb4+ {[%clk 0:03:43.9]} 27. Ka1 {[%clk 0:03:25]} 27... Qc3+ {[%clk
0:03:41.3]} 28. Kb1 {[%clk 0:03:24]} 28... Qd3+ {[%clk 0:03:30.7]} 29. Ka1
{[%clk 0:03:22.5]} 29... Qd4+ {[%clk 0:03:27.7]} 30. Kb1 {[%clk 0:03:21.4]}
30... Qd3+ {[%clk 0:03:25]} 31. Ka1 {[%clk 0:03:20.4]} 31... Qc3+ {[%clk
0:03:17.5]} 32. Kb1 {[%clk 0:03:19.2]} 1/2-1/2

[Event "Live Chess"]
[Site "Chess.com"]
[Date "2023.05.21"]
[Round "-"]
[White "raminguy"]
[Black "mach247"]
[Result "1-0"]
[WhiteElo "1960"]
[BlackElo "1327"]
[TimeControl "300"]
[EndTime "1:20:49 PDT"]
[Termination "raminguy won by resignation"]

1. d4 {[%clk 0:04:58.6]} 1... Nf6 {[%clk 0:04:58.7]} 2. Nc3 {[%clk 0:04:57.5]}
2... e6 {[%clk 0:04:57.4]} 3. e4 {[%clk 0:04:55.8]} 3... d5 {[%clk 0:04:56.7]}
4. Bg5 {[%clk 0:04:53.7]} 4... Be7 {[%clk 0:04:49.8]} 5. e5 {[%clk 0:04:51.2]}
5... Ng8 {[%clk 0:04:48.9]} 6. h4 {[%clk 0:04:50.3]} 6... Bxg5 {[%clk
0:04:45.7]} 7. hxg5 {[%clk 0:04:49.4]} 7... Qxg5 {[%clk 0:04:44.3]} 8. Nh3
{[%clk 0:04:48.5]} 8... Qd8 {[%clk 0:04:23.6]} 9. Qg4 {[%clk 0:04:46.5]} 9... g6
{[%clk 0:04:21]} 10. O-O-O {[%clk 0:04:43.1]} 10... Ne7 {[%clk 0:04:19.4]} 11.
Ng5 {[%clk 0:04:38.7]} 11... h5 {[%clk 0:04:10.1]} 12. Qf4 {[%clk 0:04:34]}
12... Nf5 {[%clk 0:04:07.2]} 13. g4 {[%clk 0:04:31.4]} 13... Nh6 {[%clk
0:03:48.5]} 14. gxh5 {[%clk 0:04:23.9]} 14... gxh5 {[%clk 0:03:40.5]} 15. Rxh5
{[%clk 0:04:17.5]} 15... Qe7 {[%clk 0:02:53.4]} 16. Nf3 {[%clk 0:03:59.3]} 16...
Bd7 {[%clk 0:02:34.9]} 17. Rxh6 {[%clk 0:03:57.6]} 1-0

[Event "Live Chess"]
[Site "Chess.com"]
[Date "2023.05.21"]
[Round "-"]
[White "peter-785"]
[Black "JoeyCage"]
[Result "0-1"]
[WhiteElo "1195"]
[BlackElo "2305"]
[TimeControl "300"]
[EndTime "1:20:59 PDT"]
[Termination "JoeyCage won by resignation"]

1. e4 {[%clk 0:04:58.8]} 1... c5 {[%clk 0:04:57.2]} 2. Nf3 {[%clk 0:04:58.2]}
2... Nc6 {[%clk 0:04:55.2]} 3. Bc4 {[%clk 0:04:57.2]} 3... Nf6 {[%clk
0:04:53.8]} 4. Nc3 {[%clk 0:04:54.5]} 4... e6 {[%clk 0:04:51.1]} 5. d4 {[%clk
0:04:52.4]} 5... cxd4 {[%clk 0:04:49.5]} 6. Nxd4 {[%clk 0:04:51.9]} 6... d6
{[%clk 0:04:41.2]} 7. Nxc6 {[%clk 0:04:50.6]} 7... bxc6 {[%clk 0:04:40.1]} 8. e5
{[%clk 0:04:41.4]} 8... dxe5 {[%clk 0:04:37]} 9. Qxd8+ {[%clk 0:04:39.2]} 9...
Kxd8 {[%clk 0:04:36]} 10. h3 {[%clk 0:04:25.1]} 10... Nd5 {[%clk 0:04:33.5]} 11.
Ne4 {[%clk 0:04:18.6]} 11... h6 {[%clk 0:04:31.2]} 12. O-O {[%clk 0:04:16.9]}
12... f5 {[%clk 0:04:29.5]} 13. Nd2 {[%clk 0:04:07.1]} 13... Bc5 {[%clk
0:04:24.7]} 14. Nb3 {[%clk 0:04:05.8]} 14... Bb6 {[%clk 0:04:23.1]} 15. Rd1
{[%clk 0:04:02.1]} 15... Ke7 {[%clk 0:04:19.8]} 16. Bd2 {[%clk 0:03:56.9]} 16...
e4 {[%clk 0:04:14.6]} 17. Bxd5 {[%clk 0:03:43.1]} 17... exd5 {[%clk 0:04:12.9]}
18. Bb4+ {[%clk 0:03:41]} 18... Kf7 {[%clk 0:04:11.4]} 19. Bc5 {[%clk
0:03:39.4]} 19... Bd7 {[%clk 0:04:08.8]} 20. Bxb6 {[%clk 0:03:28.9]} 20... axb6
{[%clk 0:04:07.2]} 21. Nd4 {[%clk 0:03:26.1]} 21... c5 {[%clk 0:04:03]} 22. Ne2
{[%clk 0:03:23.9]} 22... d4 {[%clk 0:04:01.5]} 23. Nf4 {[%clk 0:03:22.3]} 23...
Bc6 {[%clk 0:03:59]} 24. a3 {[%clk 0:03:15.8]} 24... g5 {[%clk 0:03:57]} 25. Ne2
{[%clk 0:03:13.3]} 25... Rhd8 {[%clk 0:03:54]} 26. b4 {[%clk 0:02:49.4]} 26...
Bb5 {[%clk 0:03:47.4]} 27. Ng3 {[%clk 0:02:36.7]} 27... Kf6 {[%clk 0:03:43.1]}
28. Nh5+ {[%clk 0:02:33]} 28... Kg6 {[%clk 0:03:41.1]} 29. g4 {[%clk 0:02:31.3]}
29... f4 {[%clk 0:03:31.4]} 30. bxc5 {[%clk 0:02:16.7]} 30... bxc5 {[%clk
0:03:29.8]} 31. Rd2 {[%clk 0:02:11.9]} 31... e3 {[%clk 0:03:19.8]} 32. fxe3
{[%clk 0:02:04.5]} 32... dxe3 {[%clk 0:03:18.2]} 33. Rdd1 {[%clk 0:02:02.1]}
33... e2 {[%clk 0:03:14.1]} 34. Rxd8 {[%clk 0:01:56.9]} 34... Rxd8 {[%clk
0:03:12.3]} 35. Kf2 {[%clk 0:01:29.7]} 35... Rd1 {[%clk 0:03:09.1]} 0-1

[Event "Live Chess"]
[Site "Chess.com"]
[Date "2023.05.21"]
[Round "-"]
[White "f4nomore"]
[Black "rmethornhill"]
[Result "0-1"]
[WhiteElo "1388"]
[BlackElo "1185"]
[TimeControl "300"]
[EndTime "1:21:06 PDT"]
[Termination "rmethornhill won by resignation"]

1. d4 {[%clk 0:04:58.7]} 1... Nf6 {[%clk 0:04:56.7]} 2. Bg5 {[%clk 0:04:55.7]}
2... e6 {[%clk 0:04:55.2]} 3. Bxf6 {[%clk 0:04:53.5]} 3... Qxf6 {[%clk
0:04:53.4]} 4. c3 {[%clk 0:04:52.2]} 4... Nc6 {[%clk 0:04:51.1]} 5. Nf3 {[%clk
0:04:49.9]} 5... d5 {[%clk 0:04:50.2]} 6. e3 {[%clk 0:04:48.7]} 6... Bd6 {[%clk
0:04:42]} 7. Bd3 {[%clk 0:04:46.7]} 7... O-O {[%clk 0:04:39.3]} 8. O-O {[%clk
0:04:45.3]} 8... e5 {[%clk 0:04:37.3]} 9. dxe5 {[%clk 0:04:42.4]} 9... Nxe5
{[%clk 0:04:36.5]} 10. Nbd2 {[%clk 0:04:38.9]} 10... Nxd3 {[%clk 0:04:35.1]} 11.
Nd4 {[%clk 0:04:31.9]} 11... Ne5 {[%clk 0:04:13.5]} 12. f4 {[%clk 0:04:25.4]}
12... Nc4 {[%clk 0:04:09]} 13. Nxc4 {[%clk 0:04:23.3]} 13... dxc4 {[%clk
0:04:07.5]} 14. Qe2 {[%clk 0:04:22]} 14... Qe7 {[%clk 0:03:53.8]} 15. Rae1
{[%clk 0:04:16.6]} 15... Bd7 {[%clk 0:03:39.6]} 16. Qxc4 {[%clk 0:04:12.8]}
16... a6 {[%clk 0:03:36.5]} 17. Qb3 {[%clk 0:04:09.7]} 17... b5 {[%clk
0:03:29.4]} 18. Qc2 {[%clk 0:04:01.8]} 18... c5 {[%clk 0:03:20]} 19. Nf3 {[%clk
0:03:56.5]} 19... g6 {[%clk 0:03:09.5]} 20. g3 {[%clk 0:03:43.7]} 20... Bc6
{[%clk 0:03:08]} 21. e4 {[%clk 0:03:37.6]} 21... Qd7 {[%clk 0:03:00.1]} 22. e5
{[%clk 0:03:26.2]} 22... Bc7 {[%clk 0:02:54.5]} 23. Rd1 {[%clk 0:03:23.8]} 23...
Qg4 {[%clk 0:02:53.3]} 24. Nd2 {[%clk 0:02:55.7]} 24... c4 {[%clk 0:02:43.9]}
25. b3 {[%clk 0:02:00.7]} 25... Bb6+ {[%clk 0:02:37.7]} 26. Rf2 {[%clk
0:01:59.3]} 26... Bxf2+ {[%clk 0:02:33.8]} 27. Kxf2 {[%clk 0:01:58.1]} 27... Qh3
{[%clk 0:02:29.4]} 28. Nf1 {[%clk 0:01:33.6]} 28... Qg2+ {[%clk 0:02:26.2]} 29.
Ke1 {[%clk 0:01:26.5]} 29... Qxc2 {[%clk 0:02:24.5]} 30. Rd2 {[%clk 0:01:23.9]}
30... Qb1+ {[%clk 0:02:20.9]} 31. Kf2 {[%clk 0:01:18.8]} 31... Rad8 {[%clk
0:02:14.5]} 32. Rxd8 {[%clk 0:01:13.8]} 32... Rxd8 {[%clk 0:02:13.5]} 0-1

[Event "Live Chess"]
[Site "Chess.com"]
[Date "2023.05.21"]
[Round "-"]
[White "LGC4YOU"]
[Black "Ocelot32"]
[Result "0-1"]
[WhiteElo "1185"]
[BlackElo "1371"]
[TimeControl "300"]
[EndTime "1:21:17 PDT"]
[Termination "Ocelot32 won by checkmate"]

1. d4 {[%clk 0:04:59.6]} 1... Nf6 {[%clk 0:04:58.1]} 2. Nf3 {[%clk 0:04:58.4]}
2... e6 {[%clk 0:04:52.3]} 3. Bf4 {[%clk 0:04:57.6]} 3... d5 {[%clk 0:04:50.2]}
4. e3 {[%clk 0:04:56.9]} 4... c5 {[%clk 0:04:49.3]} 5. c4 {[%clk 0:04:55.1]}
5... cxd4 {[%clk 0:04:46.9]} 6. Nxd4 {[%clk 0:04:53.2]} 6... Bd6 {[%clk
0:04:45.9]} 7. Bg3 {[%clk 0:04:50.3]} 7... Qc7 {[%clk 0:04:43.5]} 8. cxd5 {[%clk
0:04:47]} 8... Nxd5 {[%clk 0:04:38.3]} 9. b3 {[%clk 0:04:44.7]} 9... O-O {[%clk
0:04:37.1]} 10. Bc4 {[%clk 0:04:41.2]} 10... Nc6 {[%clk 0:04:29.6]} 11. Nxc6
{[%clk 0:04:31.7]} 11... Qxc6 {[%clk 0:04:28.5]} 12. O-O {[%clk 0:04:16.8]}
12... b6 {[%clk 0:04:27.1]} 13. Qf3 {[%clk 0:03:58.3]} 13... Bb7 {[%clk
0:04:23.3]} 14. Qh5 {[%clk 0:03:51.1]} 14... Nxe3 {[%clk 0:04:01.9]} 15. f3
{[%clk 0:03:15.5]} 15... Nxf1 {[%clk 0:03:47]} 16. Bxd6 {[%clk 0:03:05.7]} 16...
Qxd6 {[%clk 0:03:25.2]} 17. Bxf1 {[%clk 0:03:03.4]} 17... Qd1 {[%clk 0:03:20.6]}
18. Qb5 {[%clk 0:02:50.6]} 18... Rfc8 {[%clk 0:03:12.8]} 19. Qe2 {[%clk
0:02:49]} 19... Rc1 {[%clk 0:03:02.2]} 20. Qxd1 {[%clk 0:02:25.4]} 20... Rxd1
{[%clk 0:03:00.6]} 21. Kf2 {[%clk 0:02:24.3]} 21... Rc8 {[%clk 0:02:51.5]} 22.
Be2 {[%clk 0:02:15.9]} 22... Rdc1 {[%clk 0:02:38.7]} 23. Bd3 {[%clk 0:02:01.7]}
23... Rd8 {[%clk 0:02:33.6]} 24. Bc4 {[%clk 0:01:51.3]} 24... Rdd1 {[%clk
0:02:26.1]} 25. Kg3 {[%clk 0:01:36.5]} 25... Rxb1 {[%clk 0:02:23.7]} 26. Rxb1
{[%clk 0:01:32.5]} 26... Rxb1 {[%clk 0:02:22.5]} 27. a4 {[%clk 0:01:30.1]} 27...
Bd5 {[%clk 0:02:18.7]} 28. Bxd5 {[%clk 0:01:28.1]} 28... exd5 {[%clk 0:02:17.5]}
29. Kf4 {[%clk 0:01:27.2]} 29... Rxb3 {[%clk 0:02:15.9]} 30. Ke5 {[%clk
0:01:25.2]} 30... Rd3 {[%clk 0:02:14.6]} 31. Kf4 {[%clk 0:01:20.1]} 31... Rd1
{[%clk 0:02:12.7]} 32. Ke3 {[%clk 0:01:18.4]} 32... d4+ {[%clk 0:02:11.5]} 33.
Ke2 {[%clk 0:01:17.4]} 33... Ra1 {[%clk 0:02:10.3]} 34. Kd3 {[%clk 0:01:16.4]}
34... Rxa4 {[%clk 0:02:09.5]} 35. h4 {[%clk 0:01:14.8]} 35... a5 {[%clk
0:02:08.4]} 36. g4 {[%clk 0:01:13.7]} 36... b5 {[%clk 0:02:07.7]} 37. f4 {[%clk
0:01:12.7]} 37... Rc4 {[%clk 0:02:06.9]} 38. g5 {[%clk 0:01:10.7]} 38... a4
{[%clk 0:02:06.1]} 39. f5 {[%clk 0:01:09.3]} 39... a3 {[%clk 0:02:05]} 40. h5
{[%clk 0:01:06.8]} 40... a2 {[%clk 0:02:03.8]} 41. g6 {[%clk 0:01:06.3]} 41...
hxg6 {[%clk 0:02:02.1]} 42. hxg6 {[%clk 0:01:05.3]} 42... fxg6 {[%clk 0:02:01]}
43. fxg6 {[%clk 0:01:04.2]} 43... a1=Q {[%clk 0:01:57.7]} 44. Kd2 {[%clk
0:01:02.7]} 44... Qb2+ {[%clk 0:01:52.4]} 45. Kd3 {[%clk 0:01:01.4]} 45... Qb3+
{[%clk 0:01:49.9]} 46. Ke4 {[%clk 0:01:00.4]} 46... d3+ {[%clk 0:01:47.8]} 47.
Ke3 {[%clk 0:00:59.5]} 47... d2+ {[%clk 0:01:46.5]} 48. Ke2 {[%clk 0:00:58.8]}
48... d1=Q+ {[%clk 0:01:41.5]} 49. Kf2 {[%clk 0:00:58]} 49... Qbf3# {[%clk
0:01:39.9]} 0-1

[Event "Live Chess"]
[Site "Chess.com"]
[Date "2023.05.21"]
[Round "-"]
[White "Woodpusher500"]
[Black "Crowded_House"]
[Result "0-1"]
[WhiteElo "1177"]
[BlackElo "1658"]
[TimeControl "300"]
[EndTime "1:21:22 PDT"]
[Termination "Crowded_House won on time"]

1. e4 {[%clk 0:04:58.1]} 1... e6 {[%clk 0:04:59.6]} 2. d4 {[%clk 0:04:55.5]}
2... Bb4+ {[%clk 0:04:57.7]} 3. c3 {[%clk 0:04:50.7]} 3... Ba5 {[%clk
0:04:55.6]} 4. Nf3 {[%clk 0:04:44.4]} 4... d5 {[%clk 0:04:54.4]} 5. e5 {[%clk
0:04:41.9]} 5... Nd7 {[%clk 0:04:43.2]} 6. Bd3 {[%clk 0:04:33.8]} 6... c5 {[%clk
0:04:41.6]} 7. Be3 {[%clk 0:04:19.2]} 7... Bb6 {[%clk 0:04:36.3]} 8. O-O {[%clk
0:04:08.6]} 8... Ne7 {[%clk 0:04:33.8]} 9. Na3 {[%clk 0:03:58.4]} 9... a6 {[%clk
0:04:29.9]} 10. c4 {[%clk 0:03:49.2]} 10... cxd4 {[%clk 0:04:21.4]} 11. Nxd4
{[%clk 0:03:41.9]} 11... Nxe5 {[%clk 0:04:10.6]} 12. Bc2 {[%clk 0:03:35.6]}
12... O-O {[%clk 0:03:53.6]} 13. f4 {[%clk 0:03:29.3]} 13... Nxc4 {[%clk
0:03:49.3]} 14. Nxc4 {[%clk 0:03:25.2]} 14... dxc4 {[%clk 0:03:48]} 15. Qd2
{[%clk 0:02:59.2]} 15... Nc6 {[%clk 0:03:18.8]} 16. Rad1 {[%clk 0:02:49.5]}
16... Qf6 {[%clk 0:03:05.2]} 17. b3 {[%clk 0:02:34.9]} 17... cxb3 {[%clk
0:02:59.9]} 18. axb3 {[%clk 0:02:32.4]} 18... Rd8 {[%clk 0:02:52.2]} 19. Qd3
{[%clk 0:02:28.6]} 19... g6 {[%clk 0:02:46]} 20. Kh1 {[%clk 0:02:11.1]} 20...
Nxd4 {[%clk 0:02:23.6]} 21. Bxd4 {[%clk 0:02:08.8]} 21... Bxd4 {[%clk
0:02:22.1]} 22. Qe4 {[%clk 0:01:53.5]} 22... Bb6 {[%clk 0:02:15.2]} 23. Rxd8+
{[%clk 0:01:48.8]} 23... Bxd8 {[%clk 0:02:13.1]} 24. Rd1 {[%clk 0:01:41]} 24...
Be7 {[%clk 0:02:10.4]} 25. Rc1 {[%clk 0:01:19.2]} 25... Rb8 {[%clk 0:02:07.6]}
26. Bd3 {[%clk 0:01:09.8]} 26... b5 {[%clk 0:02:02.3]} 27. Qe3 {[%clk
0:00:58.5]} 27... Bb7 {[%clk 0:01:57.1]} 28. Qa7 {[%clk 0:00:53.6]} 28... Rc8
{[%clk 0:01:46.8]} 29. Rxc8+ {[%clk 0:00:38.3]} 29... Bxc8 {[%clk 0:01:38.8]}
30. h3 {[%clk 0:00:31.4]} 30... Bb4 {[%clk 0:01:23.5]} 31. Qb8 {[%clk
0:00:23.9]} 31... Qd8 {[%clk 0:01:21.1]} 32. Be4 {[%clk 0:00:18.3]} 32... Be7
{[%clk 0:01:16.6]} 33. Bb7 {[%clk 0:00:15]} 33... Bd6 {[%clk 0:01:10.7]} 34.
Qxc8 {[%clk 0:00:10.4]} 34... Qxc8 {[%clk 0:01:09.4]} 35. Bxc8 {[%clk 0:00:09]}
35... a5 {[%clk 0:01:08.2]} 36. Ba6 {[%clk 0:00:07.3]} 36... b4 {[%clk
0:01:06.4]} 37. Bc4 {[%clk 0:00:05.4]} 37... Kg7 {[%clk 0:01:05]} 38. g3 {[%clk
0:00:03]} 38... Kf6 {[%clk 0:01:03.1]} 39. Kg2 {[%clk 0:00:01.5]} 39... Ke7
{[%clk 0:01:02.1]} 40. Kf3 {[%clk 0:00:00.5]} 40... f6 {[%clk 0:01:01.6]} 0-1